[Event "TOP 12 FEMININ 2022 - Phase 1"]
[Site "MULHOUSE, France"]
[Date "2022.04.09"]
[Round "3.1"]
[White "AUVRAY 608, Juliette"]
[Black "CRAMLING MON, Pia"]
[Result "0-1"]
[TimeControl "90 min +30 secondes par coup"]
[WhiteElo "1976"]
[BlackElo "2454"]

1. e4 {[%clk 01:30:58]} c5 {[%clk 01:29:20]} {[%emt 00:01:39]} 2. Nf3 {[%clk
01:31:24]} {[%emt 00:00:06]} Nc6 {[%clk 01:29:22]} {[%emt 00:00:28]} 3. d4
{[%clk 01:31:32]} {[%emt 00:00:22]} cxd4 {[%clk 01:29:33]} {[%emt 00:00:18]} 4.
Nxd4 {[%clk 01:31:54]} {[%emt 00:00:08]} e6 {[%clk 01:29:36]} {[%emt 00:00:27]}
5. Nc3 {[%clk 01:31:25]} {[%emt 00:01:00]} a6 {[%clk 01:29:47]} {[%emt
00:00:17]} 6. Be3 {[%clk 01:29:06]} {[%emt 00:02:51]} Nf6 {[%clk 01:29:38]}
{[%emt 00:00:38]} 7. Be2 {[%clk 01:27:20]} {[%emt 00:02:17]} Qc7 {[%clk
01:28:32]} {[%emt 00:01:34]} 8. O-O {[%clk 01:25:12]} {[%emt 00:02:40]} d6
{[%clk 01:28:42]} {[%emt 00:00:19]} 9. a4 {[%clk 01:18:25]} {[%emt 00:07:17]}
Be7 {[%clk 01:28:03]} {[%emt 00:01:09]} 10. f4 {[%clk 01:09:19]} {[%emt
00:09:37]} O-O {[%clk 01:25:43]} {[%emt 00:02:48]} 11. Nb3 {[%clk 01:02:33]}
{[%emt 00:07:18]} b6 {[%clk 01:23:56]} {[%emt 00:02:15]} 12. Bf3 {[%clk
00:58:01]} {[%emt 00:05:04]} Rb8 {[%clk 01:12:39]} {[%emt 00:11:45]} 13. Qe2
{[%clk 00:52:56]} {[%emt 00:05:37]} Na5 {[%clk 01:09:51]} {[%emt 00:03:16]} 14.
Nxa5 {[%clk 00:48:00]} {[%emt 00:05:28]} bxa5 {[%clk 01:10:08]} {[%emt
00:00:11]} 15. Rab1 {[%clk 00:38:26]} {[%emt 00:10:05]} Rb4 {[%clk 00:58:19]}
{[%emt 00:12:18]} 16. Qd3 {[%clk 00:32:36]} {[%emt 00:06:22]} Bb7 {[%clk
00:51:09]} {[%emt 00:07:39]} 17. b3 {[%clk 00:27:15]} {[%emt 00:05:52]} Rc8
{[%clk 00:46:39]} {[%emt 00:04:58]} 18. Bd2 {[%clk 00:23:58]} {[%emt 00:03:49]}
Qc5+ {[%clk 00:43:17]} {[%emt 00:03:50]} 19. Rf2 {[%clk 00:18:24]} {[%emt
00:06:05]} Rd4 {[%clk 00:43:08]} {[%emt 00:00:38]} 20. Qe2 {[%clk 00:14:59]}
{[%emt 00:03:57]} Rxd2 {[%clk 00:42:27]} {[%emt 00:01:10]} 21. Qxd2 {[%clk
00:14:42]} {[%emt 00:00:47]} Qxc3 {[%clk 00:42:49]} {[%emt 00:00:07]} 22. Qxc3
{[%clk 00:08:57]} {[%emt 00:06:17]} Rxc3 {[%clk 00:43:10]} {[%emt 00:00:08]} 23.
Re2 {[%clk 00:07:54]} {[%emt 00:01:34]} d5 {[%clk 00:38:23]} {[%emt 00:05:15]}
24. exd5 {[%clk 00:06:24]} {[%emt 00:02:01]} Nxd5 {[%clk 00:35:43]} {[%emt
00:03:09]} 25. Bxd5 {[%clk 00:04:15]} {[%emt 00:02:41]} Bxd5 {[%clk 00:35:59]}
{[%emt 00:00:12]} 26. Rd1 {[%clk 00:02:15]} {[%emt 00:02:32]} Bc5+ {[%clk
00:35:06]} {[%emt 00:01:21]} 27. Kf1 {[%clk 00:00:36]} {[%emt 00:02:11]} g6
{[%clk 00:34:26]} {[%emt 00:01:09]} 28. h3 {[%clk 00:00:35]} {[%emt 00:00:32]}
Kg7 {[%clk 00:33:43]} {[%emt 00:01:12]} 29. Ke1 {[%clk 00:00:33]} {[%emt
00:00:33]} Be3 {[%clk 00:32:33]} {[%emt 00:01:38]} 30. g3 {[%clk 00:00:31]}
{[%emt 00:00:35]} Bf3 {[%clk 00:31:26]} {[%emt 00:01:35]} 0-1

[Event "TOP 12 FEMININ 2022 - Phase 1"]
[Site "MULHOUSE, France"]
[Date "2022.04.09"]
[Round "3.2"]
[White "LECONTE  MON, Maria"]
[Black "CORIAT 608, Caroline"]
[Result "1-0"]
[TimeControl "90 min +30 secondes par coup"]
[WhiteElo "2240"]
[BlackElo "1765"]

1. e4 {[%clk 01:21:14]} {[%emt 00:09:44]} e6 {[%clk 01:30:55]} {[%emt
00:00:06]} 2. d4 {[%clk 01:20:51]} {[%emt 00:00:52]} d5 {[%clk 01:31:18]}
{[%emt 00:00:08]} 3. Bd3 {[%clk 01:20:49]} {[%emt 00:00:31]} Nf6 {[%clk
01:31:12]} {[%emt 00:00:36]} 4. e5 {[%clk 01:21:05]} {[%emt 00:00:14]} Nfd7
{[%clk 01:31:39]} {[%emt 00:00:03]} 5. Nf3 {[%clk 01:17:00]} {[%emt 00:04:35]}
Be7 {[%clk 01:29:13]} {[%emt 00:02:56]} 6. c3 {[%clk 01:15:50]} {[%emt
00:01:40]} c5 {[%clk 01:29:21]} {[%emt 00:00:22]} 7. O-O {[%clk 01:15:35]}
{[%emt 00:00:45]} Nc6 {[%clk 01:29:15]} {[%emt 00:00:37]} 8. a3 {[%clk
01:14:53]} {[%emt 00:01:12]} g5 {[%clk 01:25:27]} {[%emt 00:04:17]} 9. Be3
{[%clk 01:08:19]} {[%emt 00:07:04]} g4 {[%clk 01:23:20]} {[%emt 00:02:38]} 10.
Ne1 {[%clk 01:08:36]} {[%emt 00:00:12]} h5 {[%clk 01:23:20]} {[%emt 00:00:31]}
11. b4 {[%clk 01:06:02]} {[%emt 00:03:03]} cxd4 {[%clk 01:21:12]} {[%emt
00:02:39]} 12. cxd4 {[%clk 01:06:16]} {[%emt 00:00:16]} Bg5 {[%clk 01:21:01]}
{[%emt 00:00:41]} 13. Nc3 {[%clk 01:02:26]} {[%emt 00:04:20]} Bxe3 {[%clk
01:12:48]} {[%emt 00:08:43]} 14. fxe3 {[%clk 01:02:48]} {[%emt 00:00:07]} Qg5
{[%clk 01:13:02]} {[%emt 00:00:16]} 15. Nb5 {[%clk 00:51:44]} {[%emt 00:11:35]}
Qxe3+ {[%clk 01:08:25]} {[%emt 00:05:06]} 16. Kh1 {[%clk 00:52:06]} {[%emt
00:00:08]} Ke7 {[%clk 01:06:19]} {[%emt 00:02:36]} 17. Nc2 {[%clk 00:46:41]}
{[%emt 00:05:55]} Qg5 {[%clk 01:04:41]} {[%emt 00:02:08]} 18. Qe2 {[%clk
00:42:49]} {[%emt 00:04:22]} g3 {[%clk 01:00:45]} {[%emt 00:04:26]} 19. h3
{[%clk 00:38:53]} {[%emt 00:04:25]} Ndxe5 {[%clk 00:59:12]} {[%emt 00:02:04]}
20. dxe5 {[%clk 00:38:31]} {[%emt 00:00:52]} Nxe5 {[%clk 00:59:39]} {[%emt
00:00:04]} 21. Ncd4 {[%clk 00:35:43]} {[%emt 00:03:18]} Bd7 {[%clk 00:54:17]}
{[%emt 00:05:52]} 22. Nf5+ {[%clk 00:34:30]} {[%emt 00:01:42]} exf5 {[%clk
00:44:26]} {[%emt 00:10:21]} 23. Qxe5+ {[%clk 00:34:55]} {[%emt 00:00:05]} Be6
{[%clk 00:44:29]} {[%emt 00:00:28]} 24. Rxf5 {[%clk 00:33:42]} {[%emt
00:01:43]} 1-0

[Event "TOP 12 FEMININ 2022 - Phase 1"]
[Site "MULHOUSE, France"]
[Date "2022.04.09"]
[Round "3.3"]
[White "BOUTANT 608, Jade"]
[Black "DORNBUSCH MON, Tatiana"]
[Result "0-1"]
[TimeControl "90 min +30 secondes par coup"]
[WhiteElo "1700"]
[BlackElo "2245"]

1. d4 {[%clk 01:28:57]} {[%emt 00:02:01]} Nf6 {[%clk 01:30:02]} {[%emt
00:00:59]} 2. Bf4 {[%clk 01:29:08]} {[%emt 00:00:19]} g6 {[%clk 01:28:43]}
{[%emt 00:01:49]} 3. e3 {[%clk 01:29:05]} {[%emt 00:00:31]} Bg7 {[%clk
01:28:58]} {[%emt 00:00:17]} 4. Nd2 {[%clk 01:26:37]} {[%emt 00:02:58]} d6
{[%clk 01:27:34]} {[%emt 00:01:54]} 5. h3 {[%clk 01:25:55]} {[%emt 00:01:12]}
O-O {[%clk 01:25:50]} {[%emt 00:02:14]} 6. Ngf3 {[%clk 01:25:07]} {[%emt
00:01:18]} c5 {[%clk 01:25:44]} {[%emt 00:00:36]} 7. c3 {[%clk 01:23:59]}
{[%emt 00:01:36]} Nc6 {[%clk 01:24:34]} {[%emt 00:01:42]} 8. Be2 {[%clk
01:22:32]} {[%emt 00:01:57]} cxd4 {[%clk 01:19:54]} {[%emt 00:05:11]} 9. exd4
{[%clk 01:20:09]} {[%emt 00:02:53]} Be6 {[%clk 01:13:05]} {[%emt 00:07:19]} 10.
O-O {[%clk 01:13:21]} {[%emt 00:07:15]} Qb6 {[%clk 01:12:01]} {[%emt 00:01:36]}
11. Nb3 {[%clk 01:01:45]} {[%emt 00:12:06]} a5 {[%clk 01:08:17]} {[%emt
00:04:14]} 12. Ng5 {[%clk 00:57:57]} {[%emt 00:04:17]} a4 {[%clk 00:59:18]}
{[%emt 00:09:29]} 13. Nxe6 {[%clk 00:57:56]} {[%emt 00:00:32]} fxe6 {[%clk
00:59:40]} {[%emt 00:00:08]} 14. Nd2 {[%clk 00:54:22]} {[%emt 00:04:04]} Qxb2
{[%clk 00:53:53]} {[%emt 00:06:17]} 15. Rc1 {[%clk 00:40:10]} {[%emt 00:14:42]}
Nd5 {[%clk 00:47:16]} {[%emt 00:07:07]} 16. Rc2 {[%clk 00:39:27]} {[%emt
00:01:13]} Nxc3 {[%clk 00:43:50]} {[%emt 00:03:56]} 17. Rxb2 {[%clk 00:38:38]}
{[%emt 00:01:18]} Nxd1 {[%clk 00:44:14]} {[%emt 00:00:07]} 18. Bxd1 {[%clk
00:36:01]} {[%emt 00:03:07]} Rxf4 {[%clk 00:43:54]} {[%emt 00:00:50]} 19. Rxb7
{[%clk 00:36:05]} {[%emt 00:00:25]} Rxd4 {[%clk 00:41:04]} {[%emt 00:03:21]} 20.
Nf3 {[%clk 00:33:58]} {[%emt 00:02:37]} Rb4 {[%clk 00:38:12]} {[%emt 00:03:22]}
21. Rc7 {[%clk 00:31:41]} {[%emt 00:02:47]} Rb6 {[%clk 00:36:03]} {[%emt
00:02:39]} 22. Ng5 {[%clk 00:30:42]} {[%emt 00:01:28]} Nd4 {[%clk 00:29:42]}
{[%emt 00:06:51]} 23. Bg4 {[%clk 00:22:19]} {[%emt 00:08:54]} e5 {[%clk
00:10:40]} {[%emt 00:19:32]} 24. Ne6 {[%clk 00:17:27]} {[%emt 00:05:21]} Bf6
{[%clk 00:10:43]} {[%emt 00:00:28]} 25. Nxd4 {[%clk 00:16:26]} {[%emt
00:01:31]} exd4 {[%clk 00:11:09]} {[%emt 00:00:04]} 26. Be6+ {[%clk 00:16:29]}
{[%emt 00:00:26]} Kg7 {[%clk 00:11:17]} {[%emt 00:00:23]} 27. Bc4 {[%clk
00:11:20]} {[%emt 00:05:39]} Ra5 {[%clk 00:10:18]} {[%emt 00:01:29]} 28. Bd3
{[%clk 00:03:17]} {[%emt 00:08:33]} Rb2 {[%clk 00:10:30]} {[%emt 00:00:18]} 29.
Rc2 {[%clk 00:01:19]} {[%emt 00:02:27]} a3 {[%clk 00:09:16]} {[%emt 00:01:45]}
30. f4 {[%clk 00:00:53]} {[%emt 00:00:56]} Rc5 {[%clk 00:08:10]} {[%emt
00:01:36]} 31. Rff2 {[%clk 00:00:43]} {[%emt 00:00:40]} Rb1+ {[%clk 00:06:44]}
{[%emt 00:01:56]} 32. Kh2 {[%clk 00:00:37]} {[%emt 00:00:37]} Rd1 {[%clk
00:06:25]} {[%emt 00:00:48]} 33. Rfd2 {[%clk 00:00:32]} {[%emt 00:00:34]} Rxc2
{[%clk 00:06:23]} {[%emt 00:00:32]} 34. Rxd1 {[%clk 00:00:33]} {[%emt
00:00:30]} Rxa2 {[%clk 00:06:47]} {[%emt 00:00:05]} 35. f5 {[%clk 00:00:32]}
{[%emt 00:00:32]} Rb2 {[%clk 00:05:28]} {[%emt 00:01:49]} 36. fxg6 {[%clk
00:00:43]} {[%emt 00:00:19]} hxg6 {[%clk 00:05:54]} {[%emt 00:00:04]} 37. Kg3
{[%clk 00:00:41]} {[%emt 00:00:32]} a2 {[%clk 00:06:08]} {[%emt 00:00:16]} 38.
Kf3 {[%clk 00:00:35]} {[%emt 00:00:37]} Rd2 {[%clk 00:06:07]} {[%emt 00:00:30]}
39. Kf4 {[%emt 00:00:44]} 0-1

[Event "TOP 12 FEMININ 2022 - Phase 1"]
[Site "MULHOUSE, France"]
[Date "2022.04.09"]
[Round "3.4"]
[White "BEREZOVSKA MON, Svetlana"]
[Black "PAROT DE SOUSA  608, Sophie"]
[Result "1-0"]
[TimeControl "90 min +30 secondes par coup"]
[WhiteElo "1774"]
[BlackElo "1416"]

1. e4 {[%clk 01:30:57]} {[%emt 00:00:03]} c5 {[%clk 01:30:54]} {[%emt
00:00:06]} 2. Nf3 {[%clk 01:31:21]} {[%emt 00:00:05]} Nc6 {[%clk 01:31:14]}
{[%emt 00:00:10]} 3. d4 {[%clk 01:31:45]} {[%emt 00:00:06]} cxd4 {[%clk
01:31:38]} {[%emt 00:00:07]} 4. Nxd4 {[%clk 01:32:09]} {[%emt 00:00:06]} g6
{[%clk 01:32:02]} {[%emt 00:00:05]} 5. c4 {[%clk 01:31:15]} {[%emt 00:01:23]}
Bg7 {[%clk 01:31:49]} {[%emt 00:00:43]} 6. Be3 {[%clk 01:31:11]} {[%emt
00:00:34]} Nf6 {[%clk 01:31:21]} {[%emt 00:00:59]} 7. Nc3 {[%clk 01:31:13]}
{[%emt 00:00:27]} O-O {[%clk 01:30:43]} {[%emt 00:01:08]} 8. Be2 {[%clk
01:29:40]} {[%emt 00:02:03]} d6 {[%clk 01:27:58]} {[%emt 00:03:16]} 9. O-O
{[%clk 01:28:37]} {[%emt 00:01:33]} Bd7 {[%clk 01:23:33]} {[%emt 00:04:55]} 10.
Rc1 {[%clk 01:26:51]} {[%emt 00:02:15]} Rc8 {[%clk 01:18:48]} {[%emt 00:05:16]}
11. h3 {[%clk 01:22:07]} {[%emt 00:05:13]} Qa5 {[%clk 01:00:38]} {[%emt
00:18:41]} 12. Nb3 {[%clk 01:11:29]} {[%emt 00:11:08]} Qd8 {[%clk 00:59:13]}
{[%emt 00:01:55]} 13. f4 {[%clk 01:07:20]} {[%emt 00:04:37]} Na5 {[%clk
00:37:03]} {[%emt 00:22:41]} 14. Nd2 {[%clk 00:59:58]} {[%emt 00:07:52]} b6
{[%clk 00:35:55]} {[%emt 00:01:39]} 15. b4 {[%clk 00:51:15]} {[%emt 00:09:13]}
Nb7 {[%clk 00:31:10]} {[%emt 00:05:15]} 16. Bf3 {[%clk 00:49:38]} {[%emt
00:02:06]} Ne8 {[%clk 00:27:50]} {[%emt 00:03:51]} 17. Qe2 {[%clk 00:42:42]}
{[%emt 00:07:26]} Bc6 {[%clk 00:21:49]} {[%emt 00:06:31]} 18. Nb3 {[%clk
00:40:14]} {[%emt 00:02:57]} Rb8 {[%clk 00:16:32]} {[%emt 00:05:48]} 19. Rfd1
{[%clk 00:38:33]} {[%emt 00:02:11]} Qc7 {[%clk 00:13:18]} {[%emt 00:03:43]} 20.
Nd4 {[%clk 00:34:12]} {[%emt 00:04:51]} Nd8 {[%clk 00:10:32]} {[%emt 00:03:16]}
21. a3 {[%clk 00:29:34]} {[%emt 00:05:08]} a6 {[%clk 00:08:24]} {[%emt
00:02:38]} 22. Nxc6 {[%clk 00:27:20]} {[%emt 00:02:44]} Nxc6 {[%clk 00:05:32]}
{[%emt 00:03:23]} 23. Nd5 {[%clk 00:26:33]} {[%emt 00:01:16]} Qd8 {[%clk
00:04:39]} {[%emt 00:01:23]} 24. e5 {[%clk 00:22:51]} {[%emt 00:04:13]} h5
{[%clk 00:02:20]} {[%emt 00:02:49]} 25. Qf2 {[%clk 00:20:12]} {[%emt 00:03:08]}
dxe5 {[%clk 00:01:04]} {[%emt 00:01:46]} 26. Nf6+ {[%clk 00:20:11]} {[%emt
00:00:31]} Nxf6 {[%clk 00:00:47]} {[%emt 00:00:47]} 27. Rxd8 {[%clk 00:20:30]}
{[%emt 00:00:11]} Rbxd8 {[%clk 00:01:01]} {[%emt 00:00:16]} 28. Bxc6 {[%clk
00:20:41]} {[%emt 00:00:20]} exf4 {[%clk 00:01:19]} {[%emt 00:00:12]} 29. Bxf4
{[%clk 00:20:34]} {[%emt 00:00:37]} Ne4 {[%clk 00:01:16]} {[%emt 00:00:32]} 30.
Bxe4 {[%clk 00:20:23]} {[%emt 00:00:41]} f5 {[%clk 00:00:41]} {[%emt 00:01:05]}
31. Bd5+ {[%clk 00:20:27]} {[%emt 00:00:26]} Kh7 {[%clk 00:01:06]} {[%emt
00:00:05]} 32. Qxb6 {[%clk 00:19:30]} {[%emt 00:01:27]} Bb2 {[%clk 00:00:39]}
{[%emt 00:00:58]} 33. Re1 {[%clk 00:19:29]} {[%emt 00:00:30]} 1-0

[Event "TOP 12 FEMININ 2022 - Phase 1"]
[Site "MULHOUSE, France"]
[Date "2022.04.09"]
[Round "3.5"]
[White "WOLHERS-ARMAS  LES, Rike"]
[Black "VEGA GUTTIERREZ  MUL, Sabrina"]
[Result "1/2-1/2"]
[TimeControl "90 min +30 secondes par coup"]
[WhiteElo "1972"]
[BlackElo "2385"]

1. d4 {[%clk 01:30:04]} {[%emt 00:00:56]} d5 {[%clk 01:30:37]} {[%emt
00:00:22]} 2. c4 {[%clk 01:30:15]} {[%emt 00:00:21]} e6 {[%clk 01:30:36]}
{[%emt 00:00:30]} 3. Nc3 {[%clk 01:30:16]} {[%emt 00:00:28]} c6 {[%clk
01:30:03]} {[%emt 00:01:03]} 4. Nf3 {[%clk 01:28:58]} {[%emt 00:01:50]} dxc4
{[%clk 01:29:51]} {[%emt 00:00:40]} 5. a4 {[%clk 01:28:40]} {[%emt 00:00:49]}
Bb4 {[%clk 01:29:54]} {[%emt 00:00:27]} 6. e3 {[%clk 01:28:06]} {[%emt
00:01:05]} b5 {[%clk 01:30:04]} {[%emt 00:00:19]} 7. Bd2 {[%clk 01:27:23]}
{[%emt 00:01:13]} a5 {[%clk 01:29:52]} {[%emt 00:00:42]} 8. axb5 {[%clk
01:26:53]} {[%emt 00:01:01]} Bxc3 {[%clk 01:30:06]} {[%emt 00:00:14]} 9. Bxc3
{[%clk 01:27:21]} {[%emt 00:00:03]} cxb5 {[%clk 01:30:25]} {[%emt 00:00:11]} 10.
b3 {[%clk 01:27:33]} {[%emt 00:00:19]} Bb7 {[%clk 01:30:38]} {[%emt 00:00:16]}
11. bxc4 {[%clk 01:27:56]} {[%emt 00:00:08]} b4 {[%clk 01:31:00]} {[%emt
00:00:07]} 12. Bb2 {[%clk 01:28:17]} {[%emt 00:00:09]} Nf6 {[%clk 01:31:14]}
{[%emt 00:00:15]} 13. Bd3 {[%clk 01:27:05]} {[%emt 00:01:43]} O-O {[%clk
01:31:02]} {[%emt 00:00:41]} 14. O-O {[%clk 01:26:32]} {[%emt 00:01:03]} Nbd7
{[%clk 01:30:33]} {[%emt 00:00:59]} 15. Nd2 {[%clk 01:26:12]} {[%emt 00:00:51]}
Qc7 {[%clk 01:24:45]} {[%emt 00:06:18]} 16. Bc2 {[%clk 01:24:22]} {[%emt
00:02:20]} Nb6 {[%clk 01:18:14]} {[%emt 00:07:00]} 17. d5 {[%clk 01:16:42]}
{[%emt 00:08:11]} Nbd7 {[%clk 01:15:15]} {[%emt 00:03:27]} 18. e4 {[%clk
01:13:39]} {[%emt 00:03:35]} exd5 {[%clk 01:12:18]} {[%emt 00:03:27]} 19. cxd5
{[%clk 01:12:19]} {[%emt 00:01:50]} Rfc8 {[%clk 01:10:31]} {[%emt 00:02:16]} 20.
Rc1 {[%clk 01:11:27]} {[%emt 00:01:24]} Qf4 {[%clk 01:03:21]} {[%emt 00:07:39]}
21. g3 {[%clk 01:04:24]} {[%emt 00:07:33]} Qd6 {[%clk 00:58:00]} {[%emt
00:05:50]} 22. f3 {[%clk 00:47:34]} {[%emt 00:17:21]} Qb6+ {[%clk 00:40:47]}
{[%emt 00:17:43]} 23. Kg2 {[%clk 00:46:41]} {[%emt 00:01:22]} Ba6 {[%clk
00:26:42]} {[%emt 00:14:36]} 24. Re1 {[%clk 00:43:42]} {[%emt 00:03:29]} Bb5
{[%clk 00:23:14]} {[%emt 00:03:58]} 25. Ra1 {[%clk 00:40:27]} {[%emt 00:03:45]}
Qc7 {[%clk 00:21:58]} {[%emt 00:01:46]} 26. Rc1 {[%clk 00:38:12]} {[%emt
00:02:45]} Qd8 {[%clk 00:18:32]} {[%emt 00:03:55]} 27. Ra1 {[%clk 00:35:31]}
{[%emt 00:03:12]} Nb6 {[%clk 00:16:22]} {[%emt 00:02:40]} 28. Bd4 {[%clk
00:33:22]} {[%emt 00:02:39]} Nfd7 {[%clk 00:13:40]} {[%emt 00:03:12]} 29. Qb1
{[%clk 00:29:03]} {[%emt 00:04:49]} Nc4 {[%clk 00:13:13]} {[%emt 00:00:58]} 30.
Nxc4 {[%clk 00:28:38]} {[%emt 00:00:55]} Rxc4 {[%clk 00:08:34]} {[%emt
00:05:08]} 31. Qb2 {[%clk 00:25:39]} {[%emt 00:03:29]} Rb8 {[%clk 00:01:22]}
{[%emt 00:07:43]} 32. Bb3 {[%clk 00:23:19]} {[%emt 00:02:50]} Rcc8 {[%clk
00:01:18]} {[%emt 00:00:33]} 33. Bxg7 {[%clk 00:22:15]} {[%emt 00:01:33]} f6
{[%clk 00:00:35]} {[%emt 00:01:14]} 34. Bh6 {[%clk 00:20:18]} {[%emt 00:02:26]}
Nc5 {[%clk 00:00:53]} {[%emt 00:00:12]} 35. Be3 {[%clk 00:10:55]} {[%emt
00:09:54]} Nxb3 {[%clk 00:00:54]} {[%emt 00:00:29]} 36. Qxb3 {[%clk 00:10:58]}
{[%emt 00:00:27]} Rc3 {[%clk 00:00:34]} {[%emt 00:00:50]} 37. Qa2 {[%clk
00:08:54]} {[%emt 00:02:35]} b3 {[%clk 00:00:35]} {[%emt 00:00:28]} 38. Qxa5
{[%clk 00:08:51]} {[%emt 00:00:33]} Qxa5 {[%clk 00:00:57]} {[%emt 00:00:09]} 39.
Rxa5 {[%clk 00:09:19]} {[%emt 00:00:01]} b2 {[%clk 00:00:31]} {[%emt 00:00:56]}
40. Bd4 {[%clk 00:05:50]} {[%emt 00:03:59]} Rc1 {[%clk 00:00:37]} {[%emt
00:00:24]} 41. Bxb2 {[%clk 00:06:13]} {[%emt 00:00:08]} Rxe1 {[%clk 00:00:37]}
{[%emt 00:00:29]} 42. Bxf6 {[%clk 00:06:31]} {[%emt 00:00:12]} Bd7 {[%clk
00:00:32]} {[%emt 00:00:35]} 43. g4 {[%clk 00:06:23]} {[%emt 00:00:38]} Rf8
{[%clk 00:00:32]} {[%emt 00:00:30]} 44. g5 {[%clk 00:05:15]} {[%emt 00:01:38]}
Kf7 {[%clk 00:00:32]} {[%emt 00:00:30]} 1/2-1/2